[Event "*** Titled Tuesday Blitz"]
[Site "Chess.com"]
[Date "2019.02.05"]
[Round "1"]
[White "StanislavNovikov"]
[Black "chenrip"]
[Result "1-0"]
[WhiteElo "2688"]
[BlackElo "2313"]
[TimeControl "180+2"]
[EndTime "13:00:56 PST"]
[Termination "StanislavNovikov won by checkmate"]

1. g3 {[%clk 0:03:01]} 1... d5 {[%clk 0:03:00.1]} 2. Bg2 {[%clk 0:03:01.5]} 2...
c6 {[%clk 0:03:01.7]} 3. d3 {[%clk 0:03:02.2]} 3... Bf5 {[%clk 0:03:01.7]} 4.
Nd2 {[%clk 0:03:03.2]} 4... Qc8 {[%clk 0:03:02.5]} 5. e4 {[%clk 0:03:03.3]} 5...
dxe4 {[%clk 0:03:02.8]} 6. dxe4 {[%clk 0:03:04.6]} 6... Be6 {[%clk 0:03:02.2]}
7. Ngf3 {[%clk 0:03:05.1]} 7... Bh3 {[%clk 0:03:02.9]} 8. O-O {[%clk 0:03:05.4]}
8... Bxg2 {[%clk 0:03:03.9]} 9. Kxg2 {[%clk 0:03:06.3]} 9... e6 {[%clk
0:03:05.5]} 10. e5 {[%clk 0:03:06.2]} 10... Ne7 {[%clk 0:03:04.5]} 11. Ne4
{[%clk 0:03:06.8]} 11... Nf5 {[%clk 0:03:05.1]} 12. g4 {[%clk 0:03:03.7]} 12...
Nh6 {[%clk 0:03:05.7]} 13. Bxh6 {[%clk 0:03:03.9]} 13... gxh6 {[%clk 0:03:06.7]}
14. Nf6+ {[%clk 0:03:04.2]} 14... Ke7 {[%clk 0:03:07.9]} 15. Qd6# {[%clk
0:03:05.3]} 1-0

[Event "*** Titled Tuesday Blitz"]
[Site "Chess.com"]
[Date "2019.02.05"]
[Round "1"]
[White "Naruto-K"]
[Black "Marcus_Harvey"]
[Result "1-0"]
[WhiteElo "2357"]
[BlackElo "2717"]
[TimeControl "180+2"]
[EndTime "13:02:05 PST"]
[Termination "Naruto-K won by resignation"]

1. d4 {[%clk 0:02:58.1]} 1... e6 {[%clk 0:03:00.1]} 2. Bf4 {[%clk 0:02:59.2]}
2... Nf6 {[%clk 0:03:00]} 3. e3 {[%clk 0:03:00.6]} 3... c5 {[%clk 0:02:57.9]} 4.
c3 {[%clk 0:03:01.7]} 4... Qb6 {[%clk 0:02:56.6]} 5. Qb3 {[%clk 0:03:02]} 5...
d6 {[%clk 0:02:55]} 6. Nd2 {[%clk 0:03:02.4]} 6... Nd5 {[%clk 0:02:55]} 7. Bg3
{[%clk 0:03:02.7]} 7... cxd4 {[%clk 0:02:51.3]} 8. exd4 {[%clk 0:03:03.4]} 8...
Qc7 {[%clk 0:02:52.2]} 9. Ngf3 {[%clk 0:03:03.8]} 9... Nc6 {[%clk 0:02:49.2]}
10. Bd3 {[%clk 0:03:02.9]} 10... Be7 {[%clk 0:02:47.4]} 11. O-O {[%clk
0:03:00.6]} 11... h6 {[%clk 0:02:48.1]} 12. Rfe1 {[%clk 0:03:00.1]} 12... O-O
{[%clk 0:02:48]} 13. c4 {[%clk 0:02:51]} 13... Ndb4 {[%clk 0:02:41]} 14. Bf1
{[%clk 0:02:49.6]} 14... d5 {[%clk 0:02:41.9]} 15. Bxc7 {[%clk 0:02:49.8]} 15...
Bd7 {[%clk 0:02:39.9]} 16. a3 {[%clk 0:02:48.8]} 16... Na6 {[%clk 0:02:38.6]}
17. Bg3 {[%clk 0:02:49.2]} 17... Na5 {[%clk 0:02:37.1]} 18. Qa2 {[%clk
0:02:49.2]} 18... Rac8 {[%clk 0:02:36.3]} 19. cxd5 {[%clk 0:02:47.4]} 1-0

[Event "*** Titled Tuesday Blitz"]
[Site "Chess.com"]
[Date "2019.02.05"]
[Round "1"]
[White "Iyael"]
[Black "Ekko_li"]
[Result "0-1"]
[WhiteElo "1999"]
[BlackElo "2486"]
[TimeControl "180+2"]
[EndTime "13:03:06 PST"]
[Termination "Ekko_li won by resignation"]

1. e4 {[%clk 0:03:01.9]} 1... d6 {[%clk 0:03:00.1]} 2. d4 {[%clk 0:03:01.9]}
2... Nf6 {[%clk 0:03:01.4]} 3. Nc3 {[%clk 0:03:02.6]} 3... g6 {[%clk 0:03:02.5]}
4. h3 {[%clk 0:03:03.6]} 4... Bg7 {[%clk 0:03:02.4]} 5. Nf3 {[%clk 0:03:04.7]}
5... O-O {[%clk 0:03:02]} 6. Be3 {[%clk 0:03:06]} 6... a6 {[%clk 0:03:03.1]} 7.
a4 {[%clk 0:03:06.4]} 7... Nc6 {[%clk 0:03:02.6]} 8. Qd2 {[%clk 0:03:06.3]} 8...
e5 {[%clk 0:03:03.7]} 9. d5 {[%clk 0:03:06.7]} 9... Ne7 {[%clk 0:03:00.1]} 10.
Be2 {[%clk 0:03:07.5]} 10... Nh5 {[%clk 0:02:49.2]} 11. O-O {[%clk 0:03:03.1]}
11... f5 {[%clk 0:02:46.2]} 12. Bh6 {[%clk 0:02:59.9]} 12... Nf4 {[%clk
0:02:37.3]} 13. Bxf4 {[%clk 0:02:51.8]} 13... exf4 {[%clk 0:02:37.4]} 14. Qxf4
{[%clk 0:02:52.1]} 14... fxe4 {[%clk 0:02:37.1]} 15. Qxe4 {[%clk 0:02:52.6]}
15... Bf5 {[%clk 0:02:38.3]} 16. Qh4 {[%clk 0:02:45.2]} 16... Bf6 {[%clk
0:02:03]} 17. Ng5 {[%clk 0:02:39.5]} 17... Bxg5 {[%clk 0:02:03.9]} 18. Qxg5
{[%clk 0:02:40.2]} 18... Bxc2 {[%clk 0:02:02.9]} 19. Rfe1 {[%clk 0:02:36.6]}
19... Nf5 {[%clk 0:02:02.8]} 20. Rac1 {[%clk 0:02:32.7]} 20... Qxg5 {[%clk
0:02:03.3]} 0-1

[Event "*** Titled Tuesday Blitz"]
[Site "Chess.com"]
[Date "2019.02.05"]
[Round "1"]
[White "AndrewMcStone"]
[Black "Zq1"]
[Result "0-1"]
[WhiteElo "2119"]
[BlackElo "2525"]
[TimeControl "180+2"]
[EndTime "13:03:25 PST"]
[Termination "Zq1 won by resignation"]

1. d4 {[%clk 0:03:01.9]} 1... Nf6 {[%clk 0:02:58.2]} 2. c4 {[%clk 0:03:02.9]}
2... a6 {[%clk 0:02:57.5]} 3. Nc3 {[%clk 0:02:48.1]} 3... c5 {[%clk 0:02:56.5]}
4. d5 {[%clk 0:02:25.6]} 4... b5 {[%clk 0:02:56.2]} 5. e3 {[%clk 0:02:26.5]}
5... b4 {[%clk 0:02:56.5]} 6. Nb1 {[%clk 0:02:25.6]} 6... d6 {[%clk 0:02:56.6]}
7. Bd3 {[%clk 0:02:24.1]} 7... g6 {[%clk 0:02:57]} 8. b3 {[%clk 0:02:24.5]} 8...
Bg7 {[%clk 0:02:57.5]} 9. Bb2 {[%clk 0:02:25.4]} 9... O-O {[%clk 0:02:58.1]} 10.
Nf3 {[%clk 0:02:20.7]} 10... a5 {[%clk 0:02:58.9]} 11. a4 {[%clk 0:02:20.1]}
11... bxa3 {[%clk 0:02:56.3]} 12. Nxa3 {[%clk 0:02:08.8]} 12... Na6 {[%clk
0:02:56.9]} 13. O-O {[%clk 0:02:08.8]} 13... Nb4 {[%clk 0:02:57.7]} 14. Bb1
{[%clk 0:02:05]} 14... e6 {[%clk 0:02:54.4]} 15. e4 {[%clk 0:02:04.6]} 15...
exd5 {[%clk 0:02:54.9]} 16. exd5 {[%clk 0:02:02.6]} 16... Re8 {[%clk 0:02:51]}
17. Re1 {[%clk 0:02:01.6]} 17... Bg4 {[%clk 0:02:40.7]} 18. Rxe8+ {[%clk
0:01:29.9]} 18... Nxe8 {[%clk 0:02:41.3]} 19. h3 {[%clk 0:01:28.4]} 19... Bxb2
{[%clk 0:02:39.4]} 0-1

[Event "*** Titled Tuesday Blitz"]
[Site "Chess.com"]
[Date "2019.02.05"]
[Round "1"]
[White "1random"]
[Black "CM_Perligero"]
[Result "0-1"]
[WhiteElo "2552"]
[BlackElo "2228"]
[TimeControl "180+2"]
[EndTime "13:03:39 PST"]
[Termination "CM_Perligero won by checkmate"]

1. b4 {[%clk 0:03:01.9]} 1... d5 {[%clk 0:02:57]} 2. Bb2 {[%clk 0:03:03]} 2...
c6 {[%clk 0:02:56.6]} 3. e3 {[%clk 0:03:03.1]} 3... Nf6 {[%clk 0:02:57.5]} 4. c4
{[%clk 0:03:02.8]} 4... Bg4 {[%clk 0:02:58.1]} 5. Qc2 {[%clk 0:03:02.6]} 5... e6
{[%clk 0:02:58.2]} 6. a3 {[%clk 0:03:03.6]} 6... Be7 {[%clk 0:02:55.2]} 7. Bd3
{[%clk 0:03:03.4]} 7... dxc4 {[%clk 0:02:50.6]} 8. Qxc4 {[%clk 0:03:03.2]} 8...
Nbd7 {[%clk 0:02:49.9]} 9. h3 {[%clk 0:03:00.9]} 9... Bh5 {[%clk 0:02:48.3]} 10.
Nf3 {[%clk 0:02:56.9]} 10... Nb6 {[%clk 0:02:48.6]} 11. Qc2 {[%clk 0:02:57.3]}
11... Bg6 {[%clk 0:02:43.6]} 12. Bxg6 {[%clk 0:02:57]} 12... hxg6 {[%clk
0:02:45.5]} 13. Ne5 {[%clk 0:02:57.4]} 13... Qd5 {[%clk 0:02:37.4]} 14. O-O
{[%clk 0:02:54.7]} 14... Nbd7 {[%clk 0:02:20.8]} 15. Nd3 {[%clk 0:02:50.6]}
15... Qg5 {[%clk 0:02:11.3]} 16. Nc3 {[%clk 0:02:44.3]} 16... Rxh3 {[%clk
0:01:50.6]} 17. Ne2 {[%clk 0:02:33.9]} 17... Rh8 {[%clk 0:01:40.2]} 18. f4
{[%clk 0:02:31.2]} 18... Qh5 {[%clk 0:01:36.6]} 19. Nd4 {[%clk 0:02:32]} 19...
Ng4 {[%clk 0:01:35.1]} 20. Rf3 {[%clk 0:02:22.7]} 20... Qh1# {[%clk 0:01:33.9]}
0-1

[Event "*** Titled Tuesday Blitz"]
[Site "Chess.com"]
[Date "2019.02.05"]
[Round "1"]
[White "Aleksey_Sorokin"]
[Black "dcremisi"]
[Result "1-0"]
[WhiteElo "2709"]
[BlackElo "2323"]
[TimeControl "180+2"]
[EndTime "13:03:41 PST"]
[Termination "Aleksey_Sorokin won by resignation"]

1. d4 {[%clk 0:03:00]} 1... d5 {[%clk 0:03:00.7]} 2. c4 {[%clk 0:03:00.9]} 2...
e6 {[%clk 0:03:02]} 3. Nf3 {[%clk 0:03:01.9]} 3... c6 {[%clk 0:03:03.2]} 4. Qc2
{[%clk 0:02:59.3]} 4... dxc4 {[%clk 0:03:01.5]} 5. e4 {[%clk 0:02:59.6]} 5... b5
{[%clk 0:02:58.2]} 6. b3 {[%clk 0:03:00.4]} 6... cxb3 {[%clk 0:02:58.3]} 7. axb3
{[%clk 0:03:02.3]} 7... Bb7 {[%clk 0:02:58.4]} 8. Bd3 {[%clk 0:03:02.7]} 8... a6
{[%clk 0:02:58.9]} 9. O-O {[%clk 0:03:03.3]} 9... Nf6 {[%clk 0:02:57.7]} 10. Nc3
{[%clk 0:02:57.6]} 10... Be7 {[%clk 0:02:57.6]} 11. e5 {[%clk 0:02:52.9]} 11...
Nd5 {[%clk 0:02:58]} 12. Nxd5 {[%clk 0:02:53.1]} 12... cxd5 {[%clk 0:02:54.1]}
13. h4 {[%clk 0:02:50.3]} 13... h6 {[%clk 0:02:54.3]} 14. h5 {[%clk 0:02:48.9]}
14... Nc6 {[%clk 0:02:54.3]} 15. Qe2 {[%clk 0:02:48.8]} 15... Qb6 {[%clk
0:02:50.6]} 16. Be3 {[%clk 0:02:47.7]} 16... O-O-O {[%clk 0:02:46.4]} 17. Nd2
{[%clk 0:02:41.3]} 17... Kb8 {[%clk 0:02:46.1]} 18. Qg4 {[%clk 0:02:40.5]} 18...
Rdg8 {[%clk 0:02:40.1]} 19. Qf4 {[%clk 0:02:41.4]} 19... Rf8 {[%clk 0:02:37.9]}
20. Rfc1 {[%clk 0:02:35.3]} 20... Ka7 {[%clk 0:02:31.8]} 21. Nf3 {[%clk
0:02:32.1]} 21... f6 {[%clk 0:02:30.5]} 22. Qg4 {[%clk 0:02:31.7]} 22... fxe5
{[%clk 0:02:29]} 23. dxe5 {[%clk 0:02:30]} 23... d4 {[%clk 0:02:28.9]} 24. Nxd4
{[%clk 0:02:30.7]} 24... Nxe5 {[%clk 0:02:24.7]} 25. Nxb5+ {[%clk 0:02:21.1]}
25... Ka8 {[%clk 0:02:15.5]} 26. Qg3 {[%clk 0:02:15.8]} 1-0

[Event "*** Titled Tuesday Blitz"]
[Site "Chess.com"]
[Date "2019.02.05"]
[Round "1"]
[White "IamSchrodingersCat"]
[Black "Andreikka"]
[Result "0-1"]
[WhiteElo "2452"]
[BlackElo "2905"]
[TimeControl "180+2"]
[EndTime "13:03:54 PST"]
[Termination "Andreikka won by resignation"]

1. e4 {[%clk 0:03:01.9]} 1... e5 {[%clk 0:02:58.7]} 2. f4 {[%clk 0:02:57.7]}
2... d5 {[%clk 0:02:59.3]} 3. exd5 {[%clk 0:02:58.4]} 3... exf4 {[%clk
0:03:00.6]} 4. Bc4 {[%clk 0:02:55.3]} 4... Nf6 {[%clk 0:03:01.2]} 5. Nc3 {[%clk
0:02:55.5]} 5... c6 {[%clk 0:02:55.4]} 6. dxc6 {[%clk 0:02:30.6]} 6... Nxc6
{[%clk 0:02:57.3]} 7. Nf3 {[%clk 0:02:30.8]} 7... Bg4 {[%clk 0:02:49.6]} 8. Qe2+
{[%clk 0:02:19.3]} 8... Be7 {[%clk 0:02:48.5]} 9. Qf2 {[%clk 0:02:06.3]} 9...
O-O {[%clk 0:02:38.4]} 10. O-O {[%clk 0:02:06.2]} 10... Bxf3 {[%clk 0:02:39.1]}
11. gxf3 {[%clk 0:01:48.8]} 11... Nd4 {[%clk 0:02:36.4]} 12. Bd3 {[%clk
0:01:36.7]} 12... Bc5 {[%clk 0:02:30.4]} 13. Kh1 {[%clk 0:01:37.7]} 13... Nb3
{[%clk 0:02:29.2]} 14. Qg2 {[%clk 0:01:35.5]} 14... Nxa1 {[%clk 0:02:30.1]} 15.
b3 {[%clk 0:01:31.4]} 15... Bd4 {[%clk 0:02:23]} 16. Bb2 {[%clk 0:01:31.6]}
16... Nxc2 {[%clk 0:02:24.5]} 17. Bxc2 {[%clk 0:01:32]} 17... Qd7 {[%clk
0:02:23.7]} 18. Bd3 {[%clk 0:01:16.8]} 18... Bxc3 {[%clk 0:02:19.6]} 19. Bxc3
{[%clk 0:01:17.6]} 19... Qxd3 {[%clk 0:02:21.2]} 0-1

[Event "*** Titled Tuesday Blitz"]
[Site "Chess.com"]
[Date "2019.02.05"]
[Round "1"]
[White "Bauxi435"]
[Black "Indianlad"]
[Result "0-1"]
[WhiteElo "2453"]
[BlackElo "2920"]
[TimeControl "180+2"]
[EndTime "13:04:11 PST"]
[Termination "Indianlad won by resignation"]

1. d4 {[%clk 0:03:01.1]} 1... Nf6 {[%clk 0:03:00.1]} 2. c4 {[%clk 0:03:01.7]}
2... g6 {[%clk 0:03:01.1]} 3. Nc3 {[%clk 0:03:02.4]} 3... d5 {[%clk 0:03:01.7]}
4. cxd5 {[%clk 0:03:02.3]} 4... Nxd5 {[%clk 0:03:02.4]} 5. e4 {[%clk 0:03:03.5]}
5... Nxc3 {[%clk 0:03:03.9]} 6. bxc3 {[%clk 0:03:05.4]} 6... Bg7 {[%clk
0:03:05.3]} 7. Nf3 {[%clk 0:03:06.8]} 7... c5 {[%clk 0:03:06.5]} 8. Rb1 {[%clk
0:03:03.4]} 8... Nc6 {[%clk 0:03:03.5]} 9. Bb5 {[%clk 0:02:58]} 9... cxd4 {[%clk
0:03:03.2]} 10. cxd4 {[%clk 0:02:58.4]} 10... O-O {[%clk 0:03:04]} 11. d5 {[%clk
0:02:54.6]} 11... Ne5 {[%clk 0:02:56.8]} 12. Nxe5 {[%clk 0:02:53.1]} 12... Bxe5
{[%clk 0:02:58.7]} 13. O-O {[%clk 0:02:53.5]} 13... Bd7 {[%clk 0:02:58.8]} 14.
Bh6 {[%clk 0:02:49.2]} 14... Re8 {[%clk 0:02:57.3]} 15. Qb3 {[%clk 0:02:40.6]}
15... b6 {[%clk 0:02:16.4]} 16. Ba6 {[%clk 0:02:36.2]} 16... Rb8 {[%clk
0:02:12.1]} 17. Rfc1 {[%clk 0:02:34.2]} 17... b5 {[%clk 0:02:12.9]} 18. Be3
{[%clk 0:02:03.9]} 18... Qa5 {[%clk 0:02:09.6]} 19. Bxa7 {[%clk 0:01:23.9]}
19... Ra8 {[%clk 0:02:10.4]} 0-1

[Event "*** Titled Tuesday Blitz"]
[Site "Chess.com"]
[Date "2019.02.05"]
[Round "1"]
[White "Quiet_Desperation"]
[Black "Farrukh_Amonatov"]
[Result "0-1"]
[WhiteElo "2400"]
[BlackElo "2822"]
[TimeControl "180+2"]
[EndTime "13:04:31 PST"]
[Termination "Farrukh_Amonatov won by resignation"]

1. e4 {[%clk 0:03:00]} 1... c5 {[%clk 0:03:00.9]} 2. d4 {[%clk 0:02:55.7]} 2...
d6 {[%clk 0:03:02.7]} 3. Nf3 {[%clk 0:02:55.9]} 3... cxd4 {[%clk 0:03:03.3]} 4.
Nxd4 {[%clk 0:02:57.6]} 4... Nf6 {[%clk 0:03:04.9]} 5. Nc3 {[%clk 0:02:59]} 5...
a6 {[%clk 0:03:06.8]} 6. Bg5 {[%clk 0:03:00.1]} 6... e6 {[%clk 0:03:07.1]} 7.
Nb3 {[%clk 0:02:52.3]} 7... Be7 {[%clk 0:03:05.6]} 8. Bd3 {[%clk 0:02:53]} 8...
b5 {[%clk 0:03:03.3]} 9. Qe2 {[%clk 0:02:52]} 9... Bb7 {[%clk 0:03:03.1]} 10. f3
{[%clk 0:02:49.6]} 10... Nbd7 {[%clk 0:03:02.9]} 11. O-O-O {[%clk 0:02:48.1]}
11... Qc7 {[%clk 0:03:03.2]} 12. Kb1 {[%clk 0:02:48.9]} 12... Ne5 {[%clk
0:02:56]} 13. Bxf6 {[%clk 0:02:24.2]} 13... Bxf6 {[%clk 0:02:49.1]} 14. Bxb5+
{[%clk 0:02:24.7]} 14... Ke7 {[%clk 0:02:39.6]} 15. Bd3 {[%clk 0:02:15.6]} 15...
Rhc8 {[%clk 0:02:36.6]} 16. f4 {[%clk 0:02:11]} 16... Nc4 {[%clk 0:02:30.2]} 17.
Bxc4 {[%clk 0:02:00.1]} 17... Qxc4 {[%clk 0:02:32.1]} 18. Qxc4 {[%clk
0:01:59.5]} 18... Rxc4 {[%clk 0:02:31.8]} 19. Na5 {[%clk 0:02:01.1]} 19... Rxc3
{[%clk 0:02:31.8]} 20. bxc3 {[%clk 0:01:59.2]} 20... Bxe4 {[%clk 0:02:31.4]} 21.
Rhe1 {[%clk 0:01:53.1]} 21... Bxg2 {[%clk 0:02:25.6]} 22. f5 {[%clk 0:01:52.2]}
22... Bxc3 {[%clk 0:02:23.1]} 23. Re3 {[%clk 0:01:46.3]} 23... Bxa5 {[%clk
0:02:22.3]} 24. fxe6 {[%clk 0:01:47.7]} 24... fxe6 {[%clk 0:02:12.3]} 25. Rg3
{[%clk 0:01:47.4]} 25... Be4 {[%clk 0:02:11.3]} 26. Rxg7+ {[%clk 0:01:47.7]}
26... Kf6 {[%clk 0:02:12.7]} 27. Rg3 {[%clk 0:01:47.2]} 27... d5 {[%clk
0:02:11.8]} 28. Rf1+ {[%clk 0:01:47.5]} 28... Ke5 {[%clk 0:02:12.2]} 29. Rg5+
{[%clk 0:01:41]} 29... Kd6 {[%clk 0:02:12.4]} 0-1

[Event "*** Titled Tuesday Blitz"]
[Site "Chess.com"]
[Date "2019.02.05"]
[Round "1"]
[White "Andrew-FB00"]
[Black "Th3ChessViking"]
[Result "0-1"]
[WhiteElo "1860"]
[BlackElo "2466"]
[TimeControl "180+2"]
[EndTime "13:04:41 PST"]
[Termination "Th3ChessViking won by resignation"]

1. e4 {[%clk 0:03:01.2]} 1... e6 {[%clk 0:02:52.3]} 2. d4 {[%clk 0:03:01.5]}
2... d5 {[%clk 0:02:50.9]} 3. exd5 {[%clk 0:03:01.7]} 3... exd5 {[%clk 0:02:51]}
4. Bd3 {[%clk 0:03:02.3]} 4... Nc6 {[%clk 0:02:51.6]} 5. c3 {[%clk 0:03:02.4]}
5... Bd6 {[%clk 0:02:52.8]} 6. Qf3 {[%clk 0:03:01.9]} 6... Nge7 {[%clk
0:02:53.4]} 7. Ne2 {[%clk 0:03:01.6]} 7... Be6 {[%clk 0:02:49.7]} 8. Be3 {[%clk
0:02:55.4]} 8... Qd7 {[%clk 0:02:49.9]} 9. Nd2 {[%clk 0:02:55.4]} 9... Bf5
{[%clk 0:02:48.2]} 10. Bxf5 {[%clk 0:02:53]} 10... Qxf5 {[%clk 0:02:49.5]} 11.
Qxf5 {[%clk 0:02:52.6]} 11... Nxf5 {[%clk 0:02:51.4]} 12. O-O-O {[%clk
0:02:50.5]} 12... O-O {[%clk 0:02:42]} 13. Bf4 {[%clk 0:02:50.8]} 13... Rfe8
{[%clk 0:02:30.7]} 14. Bxd6 {[%clk 0:02:46.7]} 14... Rxe2 {[%clk 0:02:30.3]} 15.
Bxc7 {[%clk 0:02:46.4]} 15... Rxf2 {[%clk 0:02:27.4]} 16. g3 {[%clk 0:02:28.6]}
16... Rc8 {[%clk 0:02:26.6]} 17. Bf4 {[%clk 0:02:26.9]} 17... Ncxd4 {[%clk
0:02:23.6]} 18. Kb1 {[%clk 0:02:10.5]} 18... Ne6 {[%clk 0:02:20.1]} 19. Be5
{[%clk 0:02:05.3]} 19... f6 {[%clk 0:02:16.8]} 20. Bd4 {[%clk 0:01:56.1]} 20...
Nexd4 {[%clk 0:02:14.7]} 21. cxd4 {[%clk 0:01:56]} 21... Nxd4 {[%clk 0:02:08.8]}
22. Ne4 {[%clk 0:01:53.2]} 22... dxe4 {[%clk 0:02:01.2]} 23. Rxd4 {[%clk
0:01:53.5]} 23... Rcc2 {[%clk 0:02:02.5]} 24. Rxe4 {[%clk 0:01:52]} 24... Rxb2+
{[%clk 0:02:02.1]} 25. Kc1 {[%clk 0:01:52.7]} 25... Rxa2 {[%clk 0:02:02.8]} 26.
Kb1 {[%clk 0:01:48.2]} 26... Rfb2+ {[%clk 0:02:03.3]} 27. Kc1 {[%clk 0:01:47.8]}
27... Rxh2 {[%clk 0:02:05.2]} 28. Rxh2 {[%clk 0:01:42.4]} 28... Rxh2 {[%clk
0:02:05.2]} 0-1

[Event "*** Titled Tuesday Blitz"]
[Site "Chess.com"]
[Date "2019.02.05"]
[Round "1"]
[White "goingin33"]
[Black "Maikrosoft63"]
[Result "0-1"]
[WhiteElo "2206"]
[BlackElo "2564"]
[TimeControl "180+2"]
[EndTime "13:04:47 PST"]
[Termination "Maikrosoft63 won by resignation"]

1. e4 {[%clk 0:03:01.3]} 1... c5 {[%clk 0:02:55.5]} 2. Nf3 {[%clk 0:02:53.7]}
2... Nc6 {[%clk 0:02:53.7]} 3. d4 {[%clk 0:02:51.4]} 3... cxd4 {[%clk 0:02:53]}
4. Nxd4 {[%clk 0:02:53.3]} 4... Nf6 {[%clk 0:02:51.5]} 5. Nc3 {[%clk 0:02:53.9]}
5... d6 {[%clk 0:02:47.6]} 6. g3 {[%clk 0:02:53.5]} 6... g6 {[%clk 0:02:44]} 7.
Bg2 {[%clk 0:02:54]} 7... Nxd4 {[%clk 0:02:33.7]} 8. Qxd4 {[%clk 0:02:55.9]}
8... Bg7 {[%clk 0:02:35.2]} 9. O-O {[%clk 0:02:56.8]} 9... O-O {[%clk
0:02:35.9]} 10. Bf4 {[%clk 0:02:49.2]} 10... e5 {[%clk 0:02:35.6]} 11. Bxe5
{[%clk 0:01:59.6]} 11... dxe5 {[%clk 0:02:36.5]} 12. Qxe5 {[%clk 0:02:01.5]}
12... Re8 {[%clk 0:02:35.4]} 13. Qf4 {[%clk 0:01:56.2]} 13... Qb6 {[%clk
0:02:31.6]} 14. Rab1 {[%clk 0:01:46.8]} 14... Be6 {[%clk 0:02:29.8]} 15. Rfd1
{[%clk 0:01:46.7]} 15... Rad8 {[%clk 0:02:27.8]} 16. Nd5 {[%clk 0:01:30.1]}
16... Nxd5 {[%clk 0:02:27.1]} 17. exd5 {[%clk 0:01:32]} 17... Bf5 {[%clk
0:02:27.9]} 18. Rd2 {[%clk 0:01:25.4]} 18... Bc3 {[%clk 0:02:02.7]} 0-1

[Event "*** Titled Tuesday Blitz"]
[Site "Chess.com"]
[Date "2019.02.05"]
[Round "1"]
[White "Sanan_Sjugirov"]
[Black "Lion_DL"]
[Result "1-0"]
[WhiteElo "2837"]
[BlackElo "2406"]
[TimeControl "180+2"]
[EndTime "13:04:53 PST"]
[Termination "Sanan_Sjugirov won by resignation"]

1. d4 {[%clk 0:03:01.9]} 1... Nf6 {[%clk 0:03:00.4]} 2. Nf3 {[%clk 0:03:02.7]}
2... e6 {[%clk 0:03:01.1]} 3. Bg5 {[%clk 0:03:03]} 3... h6 {[%clk 0:02:59.5]} 4.
Bh4 {[%clk 0:03:03.6]} 4... Be7 {[%clk 0:02:59]} 5. Nbd2 {[%clk 0:03:03.2]} 5...
d5 {[%clk 0:02:58.6]} 6. e3 {[%clk 0:03:03.6]} 6... O-O {[%clk 0:02:58.8]} 7.
Bd3 {[%clk 0:03:04.2]} 7... Nbd7 {[%clk 0:02:51.2]} 8. Qe2 {[%clk 0:03:02.9]}
8... c5 {[%clk 0:02:51.3]} 9. c3 {[%clk 0:03:03.6]} 9... Qb6 {[%clk 0:02:41.5]}
10. Rb1 {[%clk 0:03:03.4]} 10... Re8 {[%clk 0:02:24.5]} 11. Ne5 {[%clk
0:03:00.4]} 11... Nxe5 {[%clk 0:02:21.4]} 12. dxe5 {[%clk 0:03:01.3]} 12... Nd7
{[%clk 0:02:22.8]} 13. Bxe7 {[%clk 0:03:01.7]} 13... Rxe7 {[%clk 0:02:23]} 14.
f4 {[%clk 0:03:02.8]} 14... d4 {[%clk 0:02:20.1]} 15. Nc4 {[%clk 0:02:41.5]}
15... Qc6 {[%clk 0:02:10.7]} 16. exd4 {[%clk 0:02:40.5]} 16... cxd4 {[%clk
0:02:07]} 17. cxd4 {[%clk 0:02:41.6]} 17... Nb6 {[%clk 0:02:02.9]} 18. Nd6
{[%clk 0:02:38]} 18... Bd7 {[%clk 0:01:59.8]} 19. O-O {[%clk 0:02:37.1]} 19...
Qa4 {[%clk 0:01:52.6]} 20. Qf2 {[%clk 0:02:01.3]} 20... Bc6 {[%clk 0:01:45.4]}
21. b3 {[%clk 0:01:59.9]} 21... Qb4 {[%clk 0:01:43.8]} 22. f5 {[%clk 0:01:59.9]}
22... exf5 {[%clk 0:01:35.8]} 23. Nxf5 {[%clk 0:02:00.5]} 23... Rd7 {[%clk
0:01:36.9]} 24. Qg3 {[%clk 0:01:57.1]} 24... Qf8 {[%clk 0:01:26]} 25. Nxh6+
{[%clk 0:01:56.6]} 25... Kh8 {[%clk 0:01:26]} 26. Nxf7+ {[%clk 0:01:54]} 26...
Rxf7 {[%clk 0:01:17.3]} 1-0